bitfinex/quotes_ETHUSD_20260304
["timestamp","ask_amount","ask_price","bid_price","bid_amount"]
[1772614130306,6.23540551,2049.6,2048.3,2.70787115]
[1772614130483,6.76353966,2049.8,2048.4,0.42211416]
[1772614130678,6.76353966,2049.8,2048.1,1.22064352]
[1772614130879,4.87853966,2049.8,2048.4,1.22046475]
[1772614131103,4.87853966,2049.8,2048.5,3.12976764]
[1772614131284,4.87853966,2049.8,2048.6,0.4229284]
[1772614131489,4.87853966,2049.8,2048.7,0.4229284]
[1772614131690,11.11394517,2049.8,2048.4,1.22046475]
[1772614132010,1.61046707,2049.7,2048.5,3.13561489]
[1772614132214,3.49546707,2049.7,2048.6,0.4237205]
[1772614132414,11.11394517,2049.8,2048.7,0.4237205]
[1772614132612,11.11394517,2049.8,2048.4,1.22046475]
[1772614132906,11.11394517,2049.8,2048.6,1.2203456]
[1772614133113,12.99894517,2049.8,2048.7,3.14178005]
[1772614133293,12.99894517,2049.8,2048.8,0.42415389]
[1772614133611,6.23540551,2049.7,2048.3,1.22052433]
[1772614133816,9.72987258,2049.7,2048.4,3.14319977]
[1772614134109,6.23540551,2049.5,2048.5,3.14319977]
[1772614134286,6.23540551,2049.5,2048.6,3.14319977]
[1772614134287,1.884,2049.4,2048.6,3.14319977]
[1772614134480,1.884,2049.4,2048.3,1.22052433]
[1772614134481,1.884,2049.7,2048.7,3.1469006]
[1772614134702,4.87853966,2049.8,2048.8,0.42474787]
[1772614134908,4.87853966,2049.8,2048.3,1.22052433]
[1772614134909,10.20503669,2049.9,2048.3,1.22052433]
[1772614135110,1.21939322,2050.2,2048.6,3.82455988]
[1772614135309,1.21939322,2050.2,2048.7,3.14656179]
[1772614135607,1.21939322,2050.2,2049.9,0.0228615]
[1772614135810,1.21939322,2050.2,2048.8,3.29537091]
[1772614136009,3.10339322,2050.2,2048.9,6.44416875]
[1772614136315,1.21939322,2050.2,2049.0,3.14879784]
[1772614136514,1.884,2050.1,2049.1,3.14879784]
[1772614136696,1.21939322,2050.2,2049.2,3.14879784]
[1772614136891,1.21939322,2050.2,2049.3,3.14879784]
[1772614137102,1.21939322,2050.2,2049.4,3.14879784]
[1772614137103,1.21951219,2050.1,2049.4,3.14879784]
[1772614137310,3.10251219,2050.1,2049.5,2.72326429]
[1772614137610,1.21951219,2050.1,2048.9,1.22011272]
[1772614137910,1.883,2050.0,2048.9,1.22011272]
[1772614138209,7.93975237,2050.0,2048.9,1.22011272]
[1772614138412,6.05675237,2049.7,2048.7,3.29537091]
[1772614138617,1.61046707,2049.8,2048.8,1.22022208]
[1772614138813,1.61046707,2049.8,2048.6,4.51567514]
[1772614138987,7.27626456,2050.1,2048.6,4.51567514]
[1772614138988,8.88673163,2050.1,2048.6,4.51567514]
[1772614139185,1.882,2050.0,2048.9,3.29537091]
[1772614139414,1.882,2049.9,2048.9,3.29537091]
[1772614140291,7.66721944,2049.8,2048.8,3.29537091]
[1772614140594,1.882,2049.7,2048.7,3.29537091]
[1772614140922,7.66721944,2049.8,2048.7,3.29537091]
[1772614140923,7.93875237,2049.8,2048.7,3.29537091]
[1772614141114,1.21969068,2049.7,2048.8,4.51559738]
[1772614142112,3.10069068,2049.7,2048.9,3.29537091]
[1772614142523,7.27643051,2049.8,2048.9,3.29537091]
[1772614142723,1.88,2050.0,2049.1,3.29537091]
[1772614142890,1.88,2050.1,2049.2,3.29537091]
[1772614143088,1.21951219,2050.0,2049.4,3.29537091]
[1772614143315,7.27626456,2050.0,2049.1,4.11965257]
[1772614143522,7.27626456,2050.0,2049.0,5.33970417]
[1772614143523,1.88,2049.9,2049.0,5.33970417]
[1772614143700,7.27626456,2050.0,2049.0,5.33970417]
[1772614144019,1.879,2049.9,2049.0,5.33970417]
[1772614144227,7.27626456,2050.0,2049.2,4.11965257]
[1772614144533,1.21951219,2050.0,2049.3,4.11965257]
[1772614145099,4.87750223,2050.3,2049.7,4.11965257]
[1772614145429,6.75440365,2050.7,2050.1,4.11965257]
[1772614145596,6.75440365,2050.7,2050.2,4.11965257]
[1772614145904,4.87640365,2050.7,2050.3,4.11965257]
[1772614146105,4.87640365,2050.7,2050.0,0.02057535]
[1772614146423,0.001,2050.3,2050.0,1e-08]
[1772614148437,4.87662147,2050.9,2049.4,5.49287009]
[1772614148438,1.14273969,2051.1,2049.7,4.24909344]
[1772614148903,3.09372117,2051.4,2049.8,4.24909344]
[1772614149108,1.21872117,2051.4,2050.0,4.24909344]
[1772614149295,1.14273969,2050.9,2050.1,0.43365147]
[1772614149499,1.14273969,2050.9,2050.2,3.20806449]
[1772614149701,1.14273969,2050.6,2050.3,2.71306449]
[1772614149901,1.874,2050.5,2049.2,2.98294624]
[1772614150233,6.05675237,2050.6,2049.2,1.14273969]
[1772614150429,6.05675237,2051.1,2049.2,4.24909344]
[1772614150733,6.05675237,2050.8,2048.9,1.762]
[1772614151028,1.14273969,2051.2,2049.4,4.24909344]
[1772614151199,1.21885817,2051.1,2049.6,4.24909344]
[1772614151396,1.21885817,2051.1,2049.7,4.24909344]
[1772614152434,4.9402557,2051.8,2050.0,4.24909344]
[1772614152435,1.14273969,2051.4,2050.0,4.24909344]
[1772614152636,1.14273969,2051.2,2050.0,4.24909344]
[1772614153200,1.873,2051.5,2050.0,4.24909344]
[1772614153398,1.873,2051.5,2050.1,1.2194527]
[1772614153399,0.0551842,2051.0,2050.1,1.2194527]
[1772614154639,1.14273969,2050.6,2049.7,1.21969068]
[1772614154936,6.05675237,2050.9,2049.7,1.21969068]
[1772614155233,0.0551842,2051.0,2049.7,1.21969068]
[1772614155399,1.27413664,2051.0,2049.7,2.36243037]
[1772614155606,7.19949206,2050.6,2049.5,1.21976554]
[1772614155913,6.05675237,2050.6,2049.1,4.88013011]
[1772614156506,1.871,2050.8,2049.4,1.14273969]
[1772614156714,6.05675237,2050.7,2049.3,1.759]
[1772614157133,6.05675237,2050.7,2049.6,0.001]
[1772614157433,1.21915536,2050.6,2049.6,0.001]
[1772614157810,1.21896061,2051.0,2049.6,4.25009344]
[1772614157999,8.41839029,2051.1,2049.6,4.25009344]
[1772614159034,0.0551842,2050.9,2049.6,4.25009344]
[1772614159407,1.2742024,2050.9,2049.7,1.21969068]
[1772614159607,1.2742024,2050.9,2049.4,5.49287009]
[1772614159608,0.0551842,2050.9,2049.4,5.49287009]
[1772614159802,0.0551842,2050.9,2049.7,5.49287009]
[1772614160446,0.003,2051.5,2050.5,1.14273969]
[1772614160736,7.72163271,2051.5,2050.4,1.756]
[1772614160936,7.72163271,2051.5,2050.0,1.756]
[1772614161139,7.64273969,2051.1,2050.0,1.756]
[1772614161332,0.003,2051.5,2050.1,2.36219239]
[1772614161635,0.003,2051.5,2050.4,1.14273969]
[1772614161922,0.003,2051.5,2050.5,3.21286485]
[1772614162061,0.003,2051.5,2050.6,3.21286485]
[1772614162269,0.003,2051.5,2050.7,3.21286485]
[1772614162567,0.003,2051.5,2050.1,8.46632279]
[1772614162568,6.5,2051.8,2050.8,3.21286485]
[1772614162729,6.5,2051.8,2049.8,6.86608762]
[1772614162730,1.14273969,2051.3,2049.9,1.21957168]
[1772614162935,6.04848676,2051.4,2050.0,4.35560454]
[1772614163338,1.21844234,2051.8,2050.4,1.21927428]
[1772614163638,1.21844234,2051.8,2050.6,1.14273969]
[1772614163838,1.21820485,2052.2,2050.8,4.35560454]
[1772614164039,1.21820485,2052.2,2050.4,6.40049335]
[1772614164040,6.04848676,2052.0,2050.4,4.11501397]
[1772614164243,6.04848676,2052.0,2050.4,2.97227428]
[1772614164441,6.04848676,2052.0,2050.5,1.14273969]
[1772614164964,1.21820485,2052.2,2050.6,3.21286485]
[1772614165160,7.19122645,2052.1,2050.6,3.21286485]
[1772614165362,7.19122645,2052.1,2050.4,4.11401397]
[1772614165565,7.26681034,2052.0,2050.4,7.32687882]
[1772614165739,7.26681034,2052.0,2050.5,3.21286485]
[1772614165934,8.40955003,2052.0,2050.5,3.21286485]
[1772614166259,6.04848676,2051.9,2050.5,3.21286485]
[1772614166564,2.36106327,2052.0,2050.4,2.97127428]
[1772614166565,1.1888038,2051.3,2050.4,2.97127428]
[1772614166779,6.04848676,2051.0,2049.6,1.751]
[1772614166978,6.04848676,2051.0,2049.7,1.1888038]
[1772614167269,6.04848676,2051.0,2049.6,2.97074697]
[1772614167270,6.04848676,2051.0,2049.9,1.1888038]
[1772614167482,6.04848676,2051.0,2049.6,6.18361182]
[1772614167654,1.21897703,2050.9,2049.6,2.97074697]
[1772614168336,1.21897703,2050.9,2049.3,4.16136294]
[1772614168337,1.1888038,2050.1,2048.8,5.91036294]
[1772614168677,1.21897703,2050.9,2048.8,1.749]
[1772614168678,1.1430406,2050.0,2048.8,1.749]
[1772614168852,1.1430406,2050.0,2048.8,2.96921928]
[1772614169164,1.1430406,2050.3,2048.8,2.96921928]
[1772614169406,1.1430406,2049.8,2048.8,1.749]
[1772614169544,1.1430406,2049.8,2048.6,1.22034249]
[1772614169545,1.21969068,2049.7,2048.6,1.22034249]
[1772614170049,1.21969068,2049.7,2048.5,1.22037219]
[1772614170433,1.21969068,2049.7,2048.5,3.44462748]
[1772614170667,6.04848676,2049.4,2048.2,5.19283797]
[1772614170839,7.19152736,2049.2,2048.1,2.22525529]
[1772614171043,6.04848676,2049.2,2048.1,1.22163077]
[1772614171362,1.21969068,2049.7,2048.4,1.1430406]
[1772614171536,1.21969068,2049.7,2048.5,1.22040517]
[1772614171741,7.26816359,2049.8,2048.8,0.001]
[1772614172137,1.21967683,2049.8,2048.8,0.001]
[1772614172342,1.1430406,2050.2,2048.8,0.001]
[1772614172343,1.2194527,2050.1,2048.8,0.001]
[1772614172647,7.26793946,2050.1,2048.8,0.001]
[1772614172850,7.19152736,2049.6,2048.8,0.001]
[1772614173174,6.04848676,2049.6,2048.8,0.001]
[1772614173575,1.2198097,2049.5,2048.8,0.001]
[1772614173947,1.2197958,2049.6,2048.8,0.001]
[1772614174174,7.19152736,2049.5,2048.8,0.001]
[1772614175676,1.21986923,2049.4,2048.8,0.001]
[1772614176153,1.21955455,2050.0,2049.0,1.1430406]
[1772614176475,1.21955455,2050.0,2049.1,0.43297887]
[1772614176679,1.21955455,2050.0,2048.8,0.001]
[1772614176905,1.21955455,2050.0,2048.9,3.20306892]
[1772614177173,1.21955455,2050.0,2049.0,3.17865892]
[1772614177375,1.21849727,2050.1,2049.0,1.1430406]
[1772614177672,4.87766546,2050.2,2049.1,3.98935262]
[1772614177673,1.21939322,2050.2,2049.1,3.98935262]
[1772614177846,1.21939322,2050.2,2049.1,1.22004782]
[1772614178247,1.21939322,2050.2,2049.2,2.76840248]
[1772614178473,1.21939322,2050.2,2049.1,1.22004782]
[1772614178679,1.21939322,2050.2,2049.3,1.1430406]
[1772614178886,1.21939322,2050.2,2049.1,1.22004782]
[1772614179072,1.21939322,2050.2,2049.2,2.76814833]
[1772614179279,1.21915536,2050.6,2049.4,1.1430406]
[1772614179463,1.21915536,2050.6,2049.5,2.76814833]
[1772614179651,1.22102195,2050.9,2049.6,3.21386485]
[1772614179973,0.002,2050.9,2050.0,4.35690545]
[1772614180288,1.22099753,2050.9,2050.1,2.76587699]
[1772614180575,1.22099753,2050.9,2050.0,4.95586485]
[1772614180786,1.22099753,2050.9,2050.1,2.76473997]
[1772614180983,1.22099753,2050.9,2050.0,1.742]
[1772614181601,10.92253018,2051.7,2050.2,4.43321762]
[1772614181793,6.04848676,2051.6,2050.2,1.21935277]
[1772614182092,7.19152736,2051.4,2050.3,2.76390929]
[1772614182256,7.19152736,2051.4,2050.2,1.21935277]
[1772614182454,7.90448676,2051.3,2050.2,1.21935277]
[1772614182685,6.04848676,2051.3,2050.1,1.2194342]
[1772614182891,7.90448676,2051.3,2050.1,1.2194342]
[1772614183393,12.06557078,2051.7,2050.1,1.2194342]
[1772614183599,1.21862052,2051.5,2050.1,1.2194342]
[1772614183794,1.21862052,2051.5,2050.2,2.76694938]
[1772614184081,2.36166112,2051.5,2050.3,2.76694938]
[1772614184280,1.21862052,2051.5,2050.1,4.43329905]
[1772614184477,1.21862052,2051.5,2050.2,2.76594809]
[1772614184786,1.21862052,2051.5,2050.3,5.97981294]
[1772614184990,1.21862052,2051.5,2050.4,2.76594809]
[1772614185179,1.21862052,2051.5,2050.3,3.21386485]
[1772614185354,4.87407402,2051.7,2050.5,1.1430406]
[1772614185555,4.87407402,2051.7,2050.6,2.76420804]
[1772614185754,4.87407402,2051.7,2050.7,1.21909591]
[1772614186779,4.87407402,2051.7,2050.6,1.21911248]
[1772614186977,10.92256078,2051.7,2050.6,1.21911248]
[1772614187189,1.21850173,2051.7,2050.6,1.21911248]
[1772614187687,0.002,2051.3,2050.6,1.21911248]
[1772614188486,0.002,2051.3,2050.5,1.21917944]
[1772614188673,0.002,2051.3,2050.4,3.21386485]
[1772614188994,0.002,2051.3,2050.5,3.90302321]
[1772614189292,0.002,2051.3,2050.6,3.19126699]
[1772614189501,0.002,2051.3,2050.7,0.43128438]
[1772614189659,0.002,2051.3,2050.4,3.21386485]
[1772614189864,0.002,2051.3,2050.5,4.40945312]
[1772614190091,0.002,2051.3,2050.6,3.1902383]
[1772614190301,6.47288349,2051.2,2050.7,0.43114306]
[1772614190510,0.002,2051.3,2050.0,1.2194879]
[1772614190788,6.47488349,2051.3,2050.1,3.18939809]
[1772614190991,6.47488349,2051.3,2050.2,0.43103085]
[1772614191190,6.47488349,2051.3,2049.9,1.2195341]
[1772614191390,6.47488349,2051.3,2050.0,3.18932539]
[1772614191563,6.47488349,2051.3,2050.1,3.18932539]
[1772614191765,1.21879875,2051.2,2050.2,0.4310214]
[1772614191969,1.21879875,2051.2,2050.1,1.21941181]
[1772614191970,7.69168224,2051.2,2050.1,1.21941181]
[1772614192170,7.69168224,2051.2,2050.2,0.43099841]
[1772614192372,7.69168224,2051.2,2050.0,2.95148827]
[1772614192568,1.22078422,2051.3,2050.2,3.21086485]
[1772614192898,1.22078422,2051.3,2050.3,3.18890991]
[1772614193193,1.22078422,2051.3,2050.4,0.43104557]
[1772614193395,1.22078422,2051.3,2050.1,4.35390545]
[1772614193583,1.22078422,2051.3,2050.2,6.4007775]
[1772614193893,1.22078422,2051.3,2050.3,4.40921861]
[1772614193894,0.002,2051.3,2050.3,4.40921861]
[1772614194081,0.002,2051.3,2050.3,1.73]
[1772614194268,6.47488349,2051.3,2050.3,1.73]
[1772614194884,100.0,2050.7,2050.3,1.73]
[1772614195794,101.21910597,2050.7,2050.3,1.73]
[1772614196105,101.21910597,2050.7,2049.8,5.43512014]
[1772614196314,101.21910597,2050.7,2049.9,3.1929631]
[1772614196608,107.69198946,2050.7,2050.0,0.43161236]
[1772614196825,107.69198946,2050.7,2049.8,1.728]
[1772614197115,107.69198946,2050.7,2049.9,0.43162865]
[1772614197283,107.69198946,2050.7,2049.4,3.21086485]
[1772614197284,7.61592409,2050.6,2049.3,3.44415028]
[1772614197483,7.61592409,2050.6,2049.4,3.19441398]
[1772614197802,7.61592409,2050.6,2049.5,3.19441398]
[1772614197803,6.47288349,2050.4,2049.5,3.19441398]
[1772614198099,6.47288349,2050.4,2049.2,2.22425529]
[1772614198268,6.47288349,2050.4,2049.2,3.44423746]
[1772614198470,7.69209831,2050.5,2049.2,6.65510231]
[1772614198666,7.69209831,2050.5,2049.2,4.58727806]
[1772614198871,1.21921482,2050.5,2049.4,3.36729589]
[1772614199068,1.21921482,2050.5,2049.5,2.22425529]
[1772614199292,1.21921482,2050.5,2049.6,1.726]
[1772614199894,11.34974279,2050.6,2049.5,1.21976854]
[1772614200093,11.34974279,2050.6,2049.6,1.725]
[1772614200094,6.47288349,2050.5,2049.6,1.725]
[1772614200274,6.0198999,2050.6,2049.5,1.21980278]
[1772614200275,4.8768593,2050.6,2049.5,1.21980278]
[1772614200604,4.8768593,2050.6,2049.6,1.724]
[1772614200817,4.8768593,2050.6,2049.8,0.001]
[1772614201173,7.6627998,2050.5,2049.8,0.001]
[1772614201397,1.18991631,2050.3,2049.8,0.001]
[1772614201593,6.47288349,2050.5,2049.8,0.001]
[1772614201792,4.8768593,2050.6,2049.8,0.001]
[1772614202174,1.21915536,2050.6,2049.8,0.001]
[1772614202381,99.01618366,2050.7,2050.3,1.18991631]
[1772614202581,1.21894725,2051.0,2050.7,0.001]
[1772614202803,1.21894725,2051.0,2050.1,2.22425529]
[1772614203013,1.21894725,2051.0,2050.0,1.722]
[1772614203314,7.68991631,2050.9,2050.0,1.722]
[1772614203478,1.21894725,2051.0,2050.0,1.722]
[1772614203677,1.18991631,2050.9,2050.0,1.722]
[1772614204095,1.21903647,2050.8,2050.0,1.722]
[1772614204296,1.21903647,2050.8,2050.0,2.94149975]
[1772614204500,1.21903647,2050.8,2049.9,3.4437922]
[1772614204715,1.21903647,2050.8,2049.9,5.1647922]
[1772614204875,1.18991631,2050.7,2049.9,1.721]
[1772614205297,1.18991631,2050.7,2049.9,3.94525529]
[1772614205602,7.71903647,2050.8,2049.9,5.16482592]
[1772614205810,4.8756704,2051.1,2050.1,1.18991631]
[1772614205811,1.21885817,2051.1,2050.1,1.18991631]
[1772614206007,1.21885817,2051.1,2050.2,2.22425529]
[1772614206173,4.87743269,2051.3,2050.3,3.44358904]
[1772614206771,4.87743269,2051.3,2050.2,4.87734405]
[1772614206772,6.5,2051.2,2050.4,2.22425529]
[1772614206975,11.37743269,2051.3,2050.3,2.22425529]
[1772614207996,11.37743269,2051.3,2050.4,2.22425529]
[1772614208173,11.37743269,2051.3,2050.5,2.22425529]
[1772614208374,1.22073933,2051.3,2050.5,2.22425529]
[1772614208578,4.87330048,2052.0,2050.7,2.22425529]
[1772614208811,4.87330048,2052.0,2051.0,1.66437068]
[1772614208812,1.21832358,2052.0,2051.0,1.66437068]
[1772614209015,7.71832358,2052.0,2051.1,1.718]
[1772614209306,7.71832358,2052.0,2050.8,2.22425529]
[1772614210108,7.71832358,2052.0,2050.9,1.65376087]
[1772614210306,7.71832358,2052.0,2051.0,0.43483986]
[1772614210508,7.71832358,2052.0,2051.1,0.43483986]
[1772614210720,7.71832358,2052.0,2051.2,0.43483986]
[1772614210930,7.71832358,2052.0,2050.8,3.44325761]
[1772614211130,7.71832358,2052.0,2050.9,0.43464816]
[1772614211342,7.71832358,2052.0,2051.0,0.43464816]
[1772614211511,6.5,2051.7,2051.1,0.43464816]
[1772614211831,6.5,2051.7,2050.6,3.44338403]
[1772614211991,6.5,2051.7,2050.7,0.43466657]
[1772614212196,7.71856112,2051.6,2050.8,0.43466657]
[1772614212390,7.71856112,2051.6,2050.9,0.43466657]
[1772614212727,7.71856112,2051.6,2050.6,1.717]
[1772614212935,7.71856112,2051.6,2050.7,0.43479159]
[1772614213225,7.71856112,2051.6,2050.8,0.43479159]
[1772614213427,7.71856112,2051.6,2050.9,0.43479159]
[1772614213647,7.71856112,2051.6,2051.0,0.43485656]
[1772614213798,7.71856112,2051.6,2050.7,2.22425529]
[1772614213997,7.71856112,2051.6,2050.8,0.43491613]
[1772614214210,7.71856112,2051.6,2050.9,0.43491613]
[1772614214458,7.62624449,2051.8,2050.7,2.22425529]
[1772614214459,0.002,2051.8,2051.0,0.43491613]
[1772614214590,1.21850173,2051.7,2051.1,0.43491613]
[1772614214806,7.71850173,2051.7,2051.2,0.43491613]
[1772614215004,7.71850173,2051.7,2050.8,1.715]
[1772614215222,7.71850173,2051.7,2050.9,0.43503444]
[1772614215529,7.71850173,2051.7,2051.0,0.43503444]
[1772614215718,1.71850173,2051.7,2050.6,2.22425529]
[1772614215908,2.93700346,2051.7,2050.7,0.43501735]
[1772614216110,4.60137414,2051.7,2050.8,0.43501735]
[1772614216296,2.93700346,2051.7,2050.9,0.43501735]
[1772614216619,2.93700346,2051.7,2050.5,2.22425529]
[1772614216833,2.93700346,2051.7,2050.6,0.43511242]
[1772614217035,2.93700346,2051.7,2050.7,0.43511242]
[1772614217229,2.93700346,2051.7,2050.5,5.15746516]
[1772614217230,2.93700346,2051.7,2050.8,0.43511242]
[1772614217423,2.93700346,2051.7,2050.9,0.43511242]
[1772614217625,2.93700346,2051.7,2050.5,5.15746516]
[1772614217823,2.93700346,2051.7,2050.6,2.6596205]
[1772614218120,4.87594837,2051.8,2050.8,1.21903647]
[1772614218333,6.33910266,2051.7,2050.9,0.43536521]
[1772614218516,6.33910266,2051.7,2050.8,1.712]
[1772614218835,6.33910266,2051.7,2050.9,0.43534115]
[1772614219055,6.33910266,2051.7,2051.0,0.43534115]
[1772614219235,6.33910266,2051.7,2050.6,5.15436434]
[1772614219405,4.87594837,2051.8,2050.7,7.00575356]
[1772614220405,11.21505103,2051.8,2050.8,1.21903647]
[1772614220612,11.21505103,2051.8,2050.7,3.44330977]
[1772614220827,6.33910266,2051.7,2050.8,1.71]
[1772614222234,4.87594837,2051.8,2050.8,6.49149827]
[1772614222434,0.002,2051.8,2051.1,4.78149827]
[1772614222635,0.003,2052.7,2051.1,4.78149827]
[1772614222636,0.003,2052.7,2051.6,4.77849827]
[1772614222831,6.22401518,2052.6,2051.3,2.22425529]
[1772614223045,2.88529237,2052.7,2051.4,1.709]
[1772614223046,6.22401518,2052.4,2051.4,1.709]
[1772614223350,6.22401518,2052.4,2051.5,1.709]
[1772614223643,1.22092169,2052.7,2051.5,6.48749827]
[1772614223839,1.22092169,2052.7,2051.6,4.77849827]
[1772614223840,1.22096481,2052.7,2051.6,4.77849827]
[1772614224040,1.2209108,2052.7,2051.6,4.77849827]
[1772614224225,1.2209108,2052.7,2051.7,1.708]
[1772614224420,1.21814549,2052.3,2051.7,1.708]
[1772614224623,0.003,2052.7,2051.8,1.21844234]
[1772614224821,0.003,2052.7,2051.9,4.77849827]
[1772614225046,4.87002499,2053.4,2051.9,4.77849827]
[1772614225253,1.21755223,2053.3,2052.1,4.77849827]
[1772614225646,1.21755223,2053.3,2051.7,6.58183441]
[1772614225840,1.21755223,2053.3,2051.8,3.37057068]
[1772614225841,9.38192291,2053.3,2051.8,3.37057068]
[1772614226141,9.38192291,2053.3,2051.8,1.7062]
[1772614226142,6.5,2053.2,2051.8,1.7062]
[1772614226453,27.42034473,2053.1,2051.9,6e-08]
[1772614226653,6.5,2053.0,2051.9,6e-08]
[1772614226853,6.5,2052.8,2051.9,6e-08]
[1772614227953,27.42034473,2053.1,2051.9,6e-08]
[1772614228120,27.42034473,2053.1,2052.0,1.705]
[1772614228655,27.42234473,2053.1,2052.1,2.88263489]
[1772614228830,27.42234473,2053.1,2052.1,1.21826421]
[1772614229020,33.92234473,2053.1,2052.0,1.705]
[1772614229219,6.5,2053.0,2051.9,6e-08]
[1772614229422,6.5,2052.4,2050.5,3.32874136]
[1772614229644,6.5,2051.8,2050.3,3.2330041]
[1772614229968,6.5,2051.8,2050.7,1.21906792]
[1772614230170,6.5,2051.8,2050.7,1.21907091]
[1772614230458,7.71873933,2051.3,2050.2,0.001]
[1772614230621,6.5,2051.1,2050.2,0.001]
[1772614230822,1.21873933,2051.3,2050.2,0.001]
[1772614231022,1.21844234,2051.8,2050.6,1.66437068]
[1772614231255,7.71842507,2051.9,2050.3,1.704]
[1772614231459,7.71839992,2051.9,2050.3,1.704]
[1772614231670,7.71839992,2051.9,2050.4,0.41398645]
[1772614231870,5.50140756,2051.9,2051.2,2.20501749]
[1772614232068,1.21839992,2051.9,2051.3,3.06334977]
[1772614232359,4.87301167,2052.2,2051.4,5.26836726]
[1772614232560,6.22401518,2052.7,2051.6,3.42357744]
[1772614232760,4.87189139,2052.6,2051.8,2.20501749]
[1772614232927,4.87189139,2052.6,2051.9,3.06334977]
[1772614233121,11.09590657,2052.6,2051.8,2.20501749]
[1772614233348,6.22401518,2052.5,2051.7,2.20501749]
[1772614233571,6.22401518,2052.5,2051.6,2.20501749]
[1772614233733,6.22401518,2052.5,2051.6,3.42357494]
[1772614233932,6.22401518,2052.5,2051.7,2.20501749]
[1772614234137,1.21796745,2052.6,2051.7,2.20501749]
[1772614234533,7.44198263,2052.6,2051.7,3.42348389]
[1772614234875,4.87186982,2052.9,2051.8,2.20501749]
[1772614234876,4.87120066,2052.9,2051.8,2.20501749]
[1772614235326,6.22401518,2052.9,2051.9,2.20501749]
[1772614235529,6.22401518,2052.9,2051.8,1.66437068]
[1772614235530,6.22401518,2052.9,2052.0,2.20501749]
[1772614236037,1.21972459,2053.1,2052.0,1.66437068]
[1772614236243,7.44373977,2053.1,2051.9,2.20501749]
[1772614236547,6.22401518,2052.6,2051.7,3.42350683]
[1772614236728,6.22401518,2052.6,2051.7,3.33485121]
[1772614237148,6.22401518,2052.6,2051.7,3.33483942]
[1772614237456,6.22401518,2052.6,2051.6,3.33488358]
[1772614237953,1.21790812,2052.7,2051.6,3.33488358]
[1772614238164,1.21790812,2052.7,2051.7,2.11636187]
[1772614238323,7.4419233,2052.7,2051.7,2.11636187]
[1772614238527,7.4419233,2052.7,2051.6,3.33491645]
[1772614238938,7.4419233,2052.7,2051.6,4.99928713]
[1772614239357,7.44192415,2052.7,2051.6,3.33491645]
[1772614239660,7.44192415,2052.7,2051.6,1.21855458]
[1772614239871,7.44192415,2052.7,2051.6,3.33491645]
[1772614240162,0.002,2053.1,2051.9,1.66437068]
[1772614240324,1.21967208,2053.1,2051.9,1.66437068]
[1772614240522,1.21967208,2053.1,2051.8,2.11636187]
[1772614240523,6.22401518,2052.9,2051.8,2.11636187]
[1772614240764,7.44186397,2052.8,2051.9,1.21838296]
[1772614241277,9.32186397,2052.8,2051.9,1.21838296]
[1772614241568,6.22401518,2052.6,2051.5,1.21862052]
[1772614242036,1.21784879,2052.8,2051.6,1.66437068]
[1772614242243,7.44177536,2053.0,2051.9,0.001]
[1772614242434,6.22401518,2053.0,2051.9,0.001]
[1772614242636,7.44174916,2053.0,2051.9,0.001]
[1772614243553,9.32174916,2053.0,2051.9,0.001]
[1772614243927,7.44174916,2053.0,2051.9,0.001]
[1772614244134,9.32174916,2053.0,2051.9,0.001]
[1772614244330,6.22401518,2052.9,2051.9,0.001]
[1772614244755,9.22401518,2052.9,2051.9,0.001]
[1772614244951,1.21784879,2052.8,2051.9,0.001]
[1772614245148,14.09541034,2052.9,2051.9,0.001]
[1772614245149,3.0,2052.9,2052.0,0.41290598]
[1772614245347,4.2178154,2052.9,2052.1,0.41290598]
[1772614245530,6.22401518,2052.8,2052.2,0.41290598]
[1772614245732,6.22401518,2052.8,2051.9,0.001]
[1772614245939,6.22401518,2052.8,2052.0,0.41273467]
[1772614246136,6.22401518,2052.8,2052.1,0.41273467]
[1772614246362,6.22401518,2052.8,2052.2,0.41273467]
[1772614246587,3.0,2052.9,2051.9,0.001]
[1772614246732,3.78932684,2052.9,2052.0,3.05326246]
[1772614246935,10.01334202,2052.9,2052.1,1.63091273]
[1772614247183,10.01334202,2052.9,2052.2,0.41264852]
[1772614247343,10.01334202,2052.9,2052.0,1.21829447]
[1772614247541,6.22401518,2052.8,2052.1,0.41251551]
[1772614247737,6.22401518,2052.8,2051.9,0.001]
[1772614247943,6.22401518,2052.2,2051.6,0.001]
[1772614248661,6.22401518,2052.2,2051.6,1.21955871]
[1772614248858,1.21826421,2052.1,2051.6,0.001]
[1772614249061,7.68535396,2052.1,2051.6,0.001]
[1772614249255,6.46708975,2052.0,2051.0,1.21888826]
[1772614249447,0.001,2051.6,2051.1,2.64200085]
[1772614249654,0.001,2051.6,2051.2,2.6420392]
[1772614249852,0.001,2051.6,2051.0,1.21888826]
[1772614250049,0.001,2051.6,2051.1,2.64175129]
[1772614250254,0.001,2051.6,2051.0,1.21888826]
[1772614250458,0.001,2051.6,2051.1,2.64146311]
[1772614250673,0.001,2051.6,2051.2,2.64123693]
[1772614250877,0.001,2051.6,2051.3,3.85997015]
[1772614251063,0.001,2051.6,2051.3,1.21873322]
[1772614251370,0.001,2051.3,2051.1,1.21885817]
[1772614251560,7.6852083,2052.4,2051.2,2.63927187]
[1772614251765,6.46708975,2052.4,2051.3,4.30364255]
[1772614251939,6.46708975,2052.4,2051.4,2.63927187]
[1772614252146,7.68517785,2052.4,2051.5,2.63927187]
[1772614252470,6.46708975,2052.1,2051.0,1.21890529]
[1772614252679,6.46708975,2052.1,2051.1,2.64041791]
[1772614252839,1.21832358,2052.0,2051.3,1.21873933]
[1772614253043,7.68541333,2052.0,2051.0,4.87556449]
[1772614253258,7.68541333,2052.0,2051.1,2.64060145]
[1772614253471,7.68541333,2052.0,2051.0,1.2189176]
[1772614253673,6.46708975,2051.8,2051.0,1.2189176]
[1772614253871,6.46708975,2051.8,2050.7,4.87637976]
[1772614253872,6.46708975,2051.8,2050.7,1.21909591]
[1772614254045,8.34108975,2051.8,2050.8,2.64123459]
[1772614254245,8.34108975,2051.8,2050.9,2.64123459]
[1772614254546,2.50692871,2051.9,2050.7,1.21909591]
[1772614254547,6.46708975,2051.7,2050.7,1.21909591]
[1772614254746,6.46708975,2051.7,2050.8,2.63926863]
[1772614254966,7.68565087,2051.6,2050.9,2.63926863]
[1772614255164,7.68565087,2051.6,2050.8,1.21903598]
[1772614255345,6.46708975,2052.2,2050.8,1.21903598]
[1772614255541,6.46708975,2052.0,2050.9,2.63973259]
[1772614255762,6.46708975,2051.9,2051.0,2.63973259]
[1772614255966,6.46708975,2051.9,2050.8,1.21903598]
[1772614255967,6.46708975,2051.9,2051.1,2.63973259]